bitfinex-derivatives/quotes_SOLF0:USTF0_20241224
["timestamp","ask_amount","ask_price","bid_price","bid_amount"]
[1735053755584,2.5483,196.38,196.33,2.5488]
[1735053755784,19.93181725,196.48,196.33,2.5488]
[1735053755983,4.6893,196.49,196.35,19.93181725]
[1735053756282,4.6893,196.49,196.39,19.93181725]
[1735053756680,4.6893,196.49,196.32,4.6409]
[1735053756881,4.6893,196.49,196.38,19.93181725]
[1735053757577,2.5473,196.45,196.41,2.5478]
[1735053759592,2.5472,196.46,196.41,2.5478]
[1735053760991,2.5471,196.47,196.38,19.93181725]
[1735053761391,4.6893,196.49,196.38,19.93181725]
[1735053761785,4.6893,196.49,196.34,19.93181725]
[1735053762483,2.5482,196.39,196.34,22.48041725]
[1735053762685,24.62111725,196.49,196.28,54.48052005]
[1735053762889,19.93181725,196.45,196.28,19.93181725]
[1735053763084,2.5491,196.32,196.26,2.5496]
[1735053763293,2.5491,196.32,196.24,79.0971373]
[1735053763487,1.5756,196.4,196.24,79.0971373]
[1735053763684,19.50741725,196.41,196.24,79.0971373]
[1735053763887,3.1334,196.39,196.24,79.0971373]
[1735053764090,3.1334,196.39,196.24,24.61661725]
[1735053764494,3.1334,196.39,196.26,2.5497]
[1735053764896,2.5491,196.32,196.26,2.5497]
[1735053765788,2.5489,196.33,196.24,24.61661725]
[1735053765993,3.1334,196.39,196.31,19.93181725]
[1735053766395,19.93181725,196.49,196.36,2.5484]
[1735053766697,3.0965,196.48,196.36,2.5484]
[1735053766897,2.5478,196.42,196.36,2.5484]
[1735053767396,3.0965,196.48,196.34,19.93181725]
[1735053767593,3.0965,196.48,196.38,19.93181725]
[1735053768490,2.5472,196.46,196.41,2.5478]
[1735053768691,3.0965,196.48,196.24,4.6848]
[1735053768997,3.0965,196.48,196.36,19.93181725]
[1735053769392,3.0965,196.48,196.37,1.5578]
[1735053769796,5.6435,196.48,196.41,2.5477]
[1735053770195,3.0965,196.48,196.41,2.5477]
[1735053770908,2.5474,196.45,196.39,2.5479]
[1735053771901,2.5474,196.44,196.39,2.5479]
[1735053772296,3.0965,196.48,196.39,2.5479]
[1735053772502,2.5473,196.46,196.39,2.5479]
[1735053772701,3.0965,196.48,196.39,2.5479]
[1735053774201,1.6124,196.55,196.4,2.5479]
[1735053774402,3.259,196.54,196.4,2.5479]
[1735053775107,2.5472,196.46,196.4,2.5479]
[1735053775307,19.93181725,196.52,196.37,1.5578]
[1735053775605,19.93181725,196.48,196.34,19.93181725]
[1735053775807,2.5479,196.41,196.35,2.5485]
[1735053776305,2.5479,196.41,196.27,3.1887]
[1735053776306,1.4969,196.47,196.3,19.93181725]
[1735053776603,19.93181725,196.42,196.26,54.48052005]
[1735053776805,3.131,196.41,196.24,19.93181725]
[1735053777101,3.131,196.41,196.27,19.93181725]
[1735053777306,2.5488,196.34,196.27,19.93181725]
[1735053778507,2.5488,196.34,196.29,2.5494]
[1735053778708,2.5488,196.34,196.27,19.93181725]
[1735053778908,2.5493,196.3,196.2,23.07721725]
[1735053779108,2.5493,196.3,196.24,2.55]
[1735053779309,1.6289,196.38,196.2,23.07721725]
[1735053779511,1.6289,196.38,196.2,19.93181725]
[1735053779707,2.5492,196.31,196.25,2.5498]
[1735053780208,1.6289,196.38,196.2,19.93181725]
[1735053780411,2.5494,196.29,196.23,2.55]
[1735053780600,19.93181725,196.36,196.2,19.93181725]
[1735053780801,2.5496,196.28,196.21,2.5503]
[1735053781002,2.5496,196.28,196.2,19.93181725]
[1735053781614,1.6289,196.38,196.2,19.93181725]
[1735053781810,1.6289,196.38,196.21,1.4995]
[1735053782013,1.6289,196.38,196.25,2.5498]
[1735053782211,1.6289,196.38,196.21,1.4995]
[1735053782414,19.93181725,196.35,196.21,1.4995]
[1735053782918,2.5491,196.31,196.23,2.5501]
[1735053783115,2.5491,196.31,196.21,1.4995]
[1735053783410,1.6289,196.38,196.21,1.4995]
[1735053783411,1.6289,196.38,196.22,1.6533]
[1735053784120,1.6289,196.38,196.21,1.4995]
[1735053784422,2.5494,196.29,196.23,2.5501]
[1735053784621,1.6289,196.38,196.21,1.4995]
[1735053785118,2.5495,196.29,196.22,2.5501]
[1735053785829,2.5492,196.31,196.24,2.5499]
[1735053786720,2.5492,196.31,196.25,2.5499]
[1735053787818,2.5495,196.29,196.23,2.5501]
[1735053788020,2.5495,196.29,196.19,19.93181725]
[1735053788419,2.5489,196.33,196.19,19.93181725]
[1735053788628,1.6289,196.38,196.19,19.93181725]
[1735053788923,2.5494,196.29,196.23,2.55]
[1735053789118,1.6289,196.38,196.19,19.93181725]
[1735053789918,2.5496,196.28,196.22,2.5502]
[1735053790119,1.6289,196.38,196.19,19.93181725]
[1735053790319,12.47072352,196.36,196.22,12.47072352]
[1735053790517,12.47072352,196.36,196.23,1.5042]
[1735053791122,2.5496,196.27,196.23,1.5042]
[1735053791322,12.47072352,196.36,196.23,1.5042]
[1735053791518,12.47072352,196.36,196.24,2.5499]
[1735053791726,12.47072352,196.36,196.23,1.5042]
[1735053792128,2.5494,196.3,196.24,2.55]
[1735053793326,12.47072352,196.36,196.23,1.5042]
[1735053793525,12.47072352,196.36,196.25,2.5499]
[1735053793726,12.47072352,196.36,196.22,12.47072352]
[1735053794327,2.5495,196.29,196.22,12.47072352]
[1735053795331,2.5495,196.29,196.24,2.55]
[1735053795530,12.47072352,196.36,196.24,2.55]
[1735053795726,12.47072352,196.36,196.22,12.47072352]
[1735053795932,12.47072352,196.36,196.25,2.5498]
[1735053796131,2.5493,196.3,196.22,12.47072352]
[1735053796327,12.47072352,196.36,196.14,1.6402]
[1735053796529,1.6289,196.38,196.14,1.6402]
[1735053796530,12.47072352,196.3,196.14,1.6402]
[1735053796829,12.47072352,196.3,196.19,2.5506]
[1735053796830,3.2163,196.29,196.19,2.5506]
[1735053797033,3.2163,196.29,196.16,12.47072352]
[1735053797733,3.2163,196.29,196.14,1.6402]
[1735053797734,12.47072352,196.27,196.14,1.6402]
[1735053798236,2.5505,196.2,196.14,1.6402]
[1735053798921,12.47072352,196.27,196.14,1.6402]
[1735053798922,2.5503,196.22,196.16,2.551]
[1735053799230,2.5503,196.22,196.14,1.6402]
[1735053799434,1.5755,196.28,196.14,1.6402]
[1735053799633,2.5505,196.21,196.16,2.5511]
[1735053800128,2.5501,196.24,196.17,2.5509]
[1735053800334,1.5755,196.28,196.17,2.5509]
[1735053800630,1.5755,196.28,196.14,1.6402]
[1735053800834,12.47072352,196.25,196.14,1.6402]
[1735053801330,12.47072352,196.25,196.14,4.1916]
[1735053801958,2.5507,196.2,196.14,4.1916]
[1735053802136,12.47072352,196.25,196.17,2.551]
[1735053802434,12.47072352,196.25,196.14,14.11092352]
[1735053802830,2.5506,196.21,196.16,2.5511]
[1735053803238,12.47072352,196.25,196.14,14.11092352]
[1735053803841,12.47072352,196.25,196.11,12.47072352]
[1735053805432,2.5509,196.18,196.13,2.5515]
[1735053805632,12.47072352,196.25,196.13,2.5515]
[1735053806539,12.47072352,196.25,196.11,12.47072352]
[1735053807043,12.47072352,196.25,196.12,1.5082]
[1735053807434,2.5507,196.19,196.12,1.5082]
[1735053808540,2.5507,196.19,196.14,2.5512]
[1735053809743,2.5507,196.19,196.12,1.5082]
[1735053809937,2.5505,196.21,196.16,2.5511]
[1735053810633,14.04622352,196.28,196.18,2.5508]
[1735053811139,14.04622352,196.28,196.14,1.5211]
[1735053811343,14.04622352,196.28,196.12,13.97892352]
[1735053811344,12.47072352,196.22,196.12,1.5082]
[1735053812032,12.47072352,196.25,196.12,13.97892352]
[1735053812243,12.47072352,196.27,196.15,12.47072352]
[1735053812837,5.0959,196.41,196.21,12.47072352]
[1735053813033,12.47072352,196.36,196.21,12.47072352]
[1735053813235,2.5495,196.29,196.23,2.5501]
[1735053813446,12.47072352,196.36,196.23,2.5501]
[1735053813642,12.47072352,196.33,196.23,2.5501]
[1735053813950,12.47072352,196.36,196.24,2.55]
[1735053814343,12.47072352,196.33,196.14,1.5094]
[1735053814539,2.55,196.25,196.19,2.5506]
[1735053815439,2.5497,196.27,196.17,12.47072352]
[1735053815640,2.5497,196.27,196.21,2.5504]
[1735053817042,2.5497,196.27,196.22,2.5503]
[1735053819542,1.597,196.4,196.24,12.47072352]
[1735053819751,1.597,196.4,196.31,12.47072352]
[1735053819951,1.597,196.4,196.34,12.47072352]
[1735053820142,2.5483,196.38,196.34,12.47072352]
[1735053820846,1.597,196.4,196.34,12.47072352]
[1735053821043,3.1466,196.44,196.34,12.47072352]
[1735053821247,3.1466,196.44,196.35,2.5486]
[1735053822551,2.5479,196.41,196.35,2.5486]
[1735053822747,3.1466,196.44,196.34,12.47072352]
[1735053822953,2.548,196.4,196.34,12.47072352]
[1735053824451,2.548,196.4,196.35,2.5486]
[1735053825062,2.5478,196.42,196.37,12.47072352]
[1735053826550,2.5476,196.44,196.37,12.47072352]
[1735053826750,3.2548,196.56,196.4,12.47072352]
[1735053826751,15.72552352,196.56,196.4,12.47072352]
[1735053827053,15.72552352,196.56,196.43,12.47072352]
[1735053827054,1.6187,196.55,196.43,12.47072352]
[1735053827356,1.6187,196.55,196.44,2.5474]
[1735053828055,1.6187,196.55,196.43,12.47072352]
[1735053828255,12.47072352,196.52,196.21,15.35]
[1735053828456,12.47072352,196.49,196.35,12.47072352]
[1735053828650,2.5475,196.45,196.37,2.5483]
[1735053828858,2.5475,196.45,196.38,12.47072352]
[1735053829045,12.47072352,196.49,196.38,12.47072352]
[1735053829246,1.6187,196.55,196.42,2.5477]
[1735053829456,1.6187,196.55,196.44,12.47072352]
[1735053829857,1.6187,196.55,196.44,15.01812352]
[1735053829858,2.5466,196.51,196.44,15.01812352]
[1735053830149,1.6187,196.55,196.47,12.47072352]
[1735053831456,2.5464,196.53,196.47,15.01772352]
[1735053831652,1.6187,196.55,196.47,12.47072352]
[1735053832057,2.5467,196.51,196.47,12.47072352]
[1735053833858,1.5271,196.65,196.41,4.7956]
[1735053833859,6.96064029,196.82,196.5,24.94144704]
[1735053834050,17.12592352,196.75,196.6,12.47072352]
[1735053834456,4.6552,196.75,196.63,12.47072352]
[1735053834854,2.5439,196.73,196.66,2.5446]
[1735053835057,12.47072352,196.72,196.51,1.5086]
[1735053835261,12.47072352,196.72,196.57,12.47072352]
[1735053835661,12.47072352,196.72,196.6,12.47072352]
[1735053835965,17.12592352,196.75,196.61,1.5017]
[1735053837063,12.47072352,196.72,196.61,1.5017]
[1735053837662,15.53052352,196.75,196.63,12.47072352]
[1735053838165,15.53052352,196.75,196.64,2.5449]
[1735053838166,2.544,196.71,196.64,2.5449]
[1735053838365,15.53052352,196.75,196.63,12.47072352]
[1735053838665,3.0598,196.75,196.63,12.47072352]
[1735053838963,12.47072352,196.78,196.63,12.47072352]
[1735053839166,1.57,196.77,196.64,1.6114]
[1735053839764,2.5439,196.73,196.66,2.5447]
[1735053839966,2.5439,196.73,196.64,1.6114]
[1735053840261,2.5437,196.75,196.67,2.5445]
[1735053840467,1.57,196.77,196.67,2.5445]
[1735053840962,1.57,196.77,196.65,2.5448]
[1735053841155,3.1519,196.77,196.65,2.5448]
[1735053841361,3.1519,196.77,196.64,1.6114]
[1735053841557,3.1519,196.77,196.66,12.47072352]
[1735053842162,3.1519,196.77,196.64,1.6114]
[1735053842163,3.1519,196.77,196.64,4.1563]
[1735053842870,2.5444,196.69,196.64,1.6114]
[1735053843466,4.6606,196.77,196.64,1.6114]
[1735053843663,2.5441,196.71,196.64,4.1564]
[1735053844372,4.6606,196.77,196.66,12.47072352]
[1735053844373,2.5439,196.73,196.66,12.47072352]
[1735053844672,4.6606,196.77,196.66,12.47072352]
[1735053845568,2.5441,196.71,196.66,12.47072352]
[1735053846869,4.6606,196.77,196.66,12.47072352]
[1735053847578,1.57,196.77,196.72,12.47072352]
[1735053847783,1.57,196.77,196.71,12.47072352]
[1735053847980,2.5435,196.76,196.71,15.01472352]
[1735053848275,1.5363,196.83,196.64,1.6114]
[1735053848484,1.5363,196.83,196.71,12.47072352]
[1735053848678,2.5431,196.79,196.74,2.5437]
[1735053848883,1.5363,196.83,196.74,12.47072352]
[1735053849178,2.5432,196.78,196.74,12.47072352]
[1735053849382,1.5363,196.83,196.74,12.47072352]
[1735053849882,2.5435,196.76,196.74,12.47072352]
[1735053850382,2.5436,196.75,196.74,12.47072352]
[1735053850576,1.5363,196.83,196.74,12.47072352]
[1735053850978,2.543,196.79,196.74,12.47072352]
[1735053851181,1.5363,196.83,196.74,12.47072352]
[1735053851386,2.5429,196.8,196.74,15.01422352]
[1735053851580,2.5429,196.8,196.74,2.5435]
[1735053851881,1.5924,196.86,196.74,15.01422352]
[1735053852481,2.5429,196.8,196.75,2.5434]
[1735053853777,2.5427,196.82,196.77,15.01392352]
[1735053854277,1.5924,196.86,196.77,12.47072352]
[1735053854981,1.5924,196.86,196.78,2.5429]
[1735053854982,2.5424,196.83,196.78,2.5429]
[1735053855278,1.5924,196.86,196.77,12.47072352]
[1735053855483,2.5427,196.81,196.77,12.47072352]
[1735053856277,2.5427,196.81,196.77,15.01392352]
[1735053856477,2.542,196.87,196.77,12.47072352]
[1735053856678,1.6164,196.89,196.77,12.47072352]
[1735053857182,2.5423,196.84,196.77,15.01382352]
[1735053857380,1.6164,196.89,196.77,12.47072352]
[1735053857683,2.5422,196.85,196.78,2.5429]
[1735053857980,1.6164,196.89,196.8,12.47072352]
[1735053858175,1.6164,196.89,196.73,1.5989]
[1735053858176,2.5418,196.89,196.83,12.47072352]
[1735053858982,3.1834,196.94,196.83,12.47072352]
[1735053859681,2.542,196.87,196.83,12.47072352]
[1735053860386,2.5422,196.85,196.73,1.5989]
[1735053860585,12.47072352,196.86,196.74,12.47072352]
[1735053860785,1.4933,196.84,196.74,12.47072352]
[1735053860980,2.5433,196.78,196.74,12.47072352]
[1735053861183,1.567,196.94,196.74,12.47072352]
[1735053861381,12.47072352,196.88,196.74,12.47072352]
[1735053862082,12.47072352,196.88,196.76,2.5434]
[1735053862478,12.47072352,196.88,196.74,12.47072352]
[1735053862680,2.5433,196.77,196.74,12.47072352]
[1735053862883,12.47072352,196.85,196.72,1.5375]
[1735053863076,3.0893,196.84,196.72,1.5375]
[1735053863277,3.0893,196.84,196.63,1.5785]
[1735053863278,12.47072352,196.82,196.67,15.01512352]
[1735053863480,12.47072352,196.79,196.67,15.01512352]
[1735053863684,2.5439,196.72,196.67,15.01512352]
[1735053863984,1.6451,196.78,196.67,12.47072352]
[1735053864181,3.0893,196.84,196.7,12.47072352]
[1735053864489,12.47072352,196.82,196.7,12.47072352]
[1735053864886,2.5437,196.74,196.7,12.47072352]
[1735053865085,12.47072352,196.82,196.7,12.47072352]
[1735053865282,2.5432,196.78,196.72,2.5439]
[1735053865584,2.5432,196.78,196.7,12.47072352]
[1735053865983,2.5432,196.78,196.73,12.47072352]
[1735053866190,2.543,196.79,196.73,15.01452352]
[1735053866385,1.6451,196.83,196.73,12.47072352]
[1735053866590,14.11582352,196.83,196.7,12.47072352]
[1735053866786,2.5435,196.76,196.7,12.47072352]
[1735053867391,14.11582352,196.83,196.7,15.01482352]
[1735053867889,14.11582352,196.83,196.7,12.47072352]
[1735053869691,14.11582352,196.83,196.7,15.01482352]
[1735053870089,2.5435,196.75,196.7,15.01482352]
[1735053870294,14.11582352,196.83,196.69,2.5443]
[1735053870295,12.47072352,196.8,196.69,2.5443]
[1735053870793,2.5441,196.71,196.67,12.47072352]
[1735053871785,2.5436,196.76,196.7,12.47072352]
[1735053872290,2.5436,196.76,196.72,2.544]
[1735053872491,2.5436,196.75,196.7,12.47072352]
[1735053872890,12.47072352,196.82,196.71,2.5441]
[1735053873597,12.47072352,196.82,196.68,2.5444]
[1735053873895,1.5316,196.81,196.68,2.5444]
[1735053874489,1.5316,196.81,196.67,12.47072352]
[1735053874490,2.5442,196.71,196.67,12.47072352]
[1735053874693,12.47072352,196.79,196.67,12.47072352]
[1735053874890,1.4909,196.78,196.67,12.47072352]
[1735053875290,1.4909,196.78,196.64,14.01622352]
[1735053875486,2.5444,196.69,196.64,14.01622352]
[1735053875891,12.47072352,196.76,196.64,14.01622352]
[1735053876099,2.5446,196.67,196.6,60.40492565]
[1735053876298,2.5446,196.67,196.6,12.47072352]
[1735053876494,12.47072352,196.66,196.55,1.5537]
[1735053876800,3.2226,196.72,196.52,54.48052005]
[1735053876801,12.47072352,196.63,196.52,54.48052005]
[1735053876996,1.5406,196.62,196.52,54.48052005]
[1735053877298,2.5458,196.58,196.52,54.48052005]
[1735053877700,2.546,196.57,196.52,54.48052005]
[1735053877896,2.546,196.57,196.51,15.01742352]
[1735053878096,2.546,196.57,196.5,1.0178117]
[1735053878097,12.47072352,196.6,196.5,1.0178117]
[1735053878293,2.5463,196.54,196.5,1.0178117]
[1735053878499,12.47072352,196.54,196.42,12.47072352]
[1735053878890,12.47072352,196.54,196.47,2.5471]
[1735053878891,2.5464,196.54,196.47,2.5471]
[1735053879102,12.47072352,196.61,196.48,12.47072352]
[1735053879399,12.47072352,196.8,196.57,12.47072352]
[1735053879600,2.5444,196.69,196.57,12.47072352]
[1735053879793,2.5444,196.69,196.58,1.6276]
[1735053880298,1.598,196.73,196.58,1.6276]
[1735053880801,1.598,196.73,196.61,2.5454]
[1735053881100,1.598,196.73,196.58,1.6276]
[1735053881297,19.87833502,196.7,196.58,1.6276]
[1735053881698,1.598,196.73,196.58,1.6276]
[1735053882001,19.87833502,196.67,196.51,1.6272]
[1735053882199,2.5456,196.59,196.51,1.6272]
[1735053882398,1.6223,196.66,196.56,2.546]
[1735053882600,1.6223,196.66,196.51,21.50553502]
[1735053882800,19.87833502,196.7,196.51,21.50553502]
[1735053883295,2.5448,196.66,196.6,2.5455]
[1735053883504,19.87833502,196.7,196.51,21.50553502]
[1735053883699,1.5645,196.69,196.51,21.50553502]
[1735053884001,2.5449,196.65,196.51,21.50553502]
[1735053884697,2.5449,196.65,196.59,2.5456]
[1735053885402,1.5645,196.69,196.55,19.87833502]
[1735053885403,2.5446,196.68,196.55,19.87833502]
[1735053885602,1.5645,196.69,196.56,1.5069]
[1735053886001,1.5645,196.69,196.64,2.545]
[1735053886305,1.5645,196.69,196.56,1.5069]
[1735053886499,1.5645,196.69,196.59,19.87833502]
[1735053886697,2.544,196.72,196.6,1.5474]
[1735053886897,1.598,196.73,196.6,1.5474]
[1735053887403,3.083,196.73,196.6,1.5474]
[1735053887806,2.5441,196.71,196.6,1.5474]
[1735053888392,2.5441,196.71,196.66,2.5447]
[1735053889802,2.5445,196.68,196.63,2.5451]
[1735053890105,3.083,196.73,196.56,1.5069]
[1735053890106,19.87833502,196.7,196.56,1.5069]
[1735053890404,19.87833502,196.66,196.52,1.4957]
[1735053890906,19.87833502,196.66,196.56,2.5459]
[1735053891699,19.87833502,196.66,196.58,2.5457]
[1735053892099,2.545,196.64,196.58,2.5457]
[1735053892603,19.87833502,196.66,196.58,2.5457]
[1735053892799,19.87833502,196.66,196.52,1.4957]
[1735053893101,19.87833502,196.7,196.52,1.4957]
[1735053893906,4.6548,196.73,196.56,19.87833502]
[1735053894101,4.6548,196.73,196.57,1.602]
[1735053894604,2.5442,196.71,196.63,2.545]
[1735053894796,4.6548,196.73,196.6,19.87833502]
[1735053895195,2.5443,196.7,196.64,2.5449]
[1735053895403,2.5443,196.7,196.6,19.87833502]
[1735053895804,4.6548,196.73,196.6,19.87833502]
[1735053896002,2.5444,196.69,196.6,19.87833502]
[1735053896303,2.5444,196.69,196.64,2.545]
[1735053897098,2.5444,196.69,196.64,2.5449]
[1735053897298,2.5442,196.7,196.6,19.87833502]
[1735053897600,2.5442,196.7,196.64,2.5449]
[1735053898001,4.6548,196.73,196.6,19.87833502]
[1735053898196,7.1987,196.73,196.67,2.5445]
[1735053899807,4.0289,196.73,196.67,2.5445]
[1735053900903,4.0289,196.73,196.68,2.5443]
[1735053901103,1.485,196.73,196.64,19.87833502]
[1735053901503,1.485,196.73,196.61,1.5693]
[1735053901704,2.5443,196.69,196.61,1.5693]
[1735053902106,2.5443,196.69,196.64,2.5449]
[1735053902401,2.5443,196.69,196.61,1.5693]
[1735053902608,1.485,196.73,196.61,1.5693]
[1735053903905,2.5444,196.69,196.64,2.5449]
[1735053904103,1.485,196.73,196.61,1.5693]
[1735053905412,2.5444,196.69,196.65,2.5448]
[1735053905608,2.5444,196.69,196.61,1.5693]
[1735053905810,1.485,196.73,196.61,1.5693]
[1735053906208,3.0179,196.79,196.64,19.87833502]
[1735053906409,1.5274,196.79,196.68,19.87833502]
[1735053906811,1.5263,196.84,196.73,2.5437]
[1735053907011,1.5263,196.84,196.68,19.87833502]
[1735053907214,1.5582,196.86,196.72,19.87833502]
[1735053907421,1.5582,196.86,196.62,1.0321]
[1735053907618,19.87833502,196.79,196.62,21.52383502]
[1735053907918,3.1135,196.78,196.62,76.00435507]
[1735053908417,2.5442,196.7,196.64,2.5449]
[1735053908807,1.5846,196.77,196.62,1.6455]
[1735053908808,1.5846,196.77,196.62,21.52383502]
[1735053909817,21.46293502,196.77,196.57,19.87833502]
[1735053910016,21.46293502,196.77,196.57,21.45693502]
[1735053910417,2.5445,196.67,196.57,21.45693502]
[1735053911421,2.5445,196.67,196.62,2.5452]
[1735053911810,2.5444,196.69,196.57,21.45693502]
[1735053912314,2.5444,196.68,196.62,2.5451]
[1735053914720,2.5444,196.68,196.57,21.45693502]
[1735053914721,2.544,196.71,196.65,2.5447]
[1735053915121,1.5846,196.77,196.65,2.5447]
[1735053915622,21.46293502,196.77,196.65,2.5447]
[1735053916520,21.46293502,196.77,196.63,2.5449]
[1735053916919,1.5846,196.77,196.63,2.5449]
[1735053917122,2.5441,196.71,196.65,2.5447]
[1735053917522,2.5441,196.71,196.67,2.5445]
[1735053917721,1.5846,196.77,196.6,19.87833502]
[1735053917722,2.5438,196.73,196.6,19.87833502]
[1735053918421,1.5901,196.78,196.64,19.87833502]
[1735053918625,1.5901,196.78,196.65,4.1226]
[1735053919023,22.92093502,196.85,196.68,19.87833502]
[1735053919224,1.4853,196.84,196.68,19.87833502]
[1735053919824,1.4853,196.84,196.72,19.87833502]
[1735053920126,1.5048,196.89,196.73,1.6486]
[1735053920327,1.5048,196.89,196.74,1.4946]
[1735053920328,1.508,196.88,196.74,1.4946]
[1735053921428,2.5423,196.85,196.79,2.5429]
[1735053921622,1.508,196.88,196.74,1.4946]
[1735053922124,2.542,196.87,196.82,2.5425]
[1735053922324,1.508,196.88,196.76,19.87833502]
[1735053922528,2.542,196.87,196.81,2.5426]
[1735053922727,2.542,196.87,196.76,19.87833502]
[1735053922925,1.508,196.88,196.76,19.87833502]
[1735053923130,4.0499,196.88,196.82,2.5425]
[1735053923329,4.0499,196.88,196.76,19.87833502]
[1735053923531,1.508,196.88,196.75,1.0335]
[1735053923727,1.508,196.88,196.79,2.543]
[1735053923728,2.5424,196.84,196.79,2.543]
[1735053924124,1.508,196.88,196.79,2.543]
[1735053924328,1.508,196.88,196.8,2.5427]
[1735053924529,1.508,196.88,196.75,1.0335]
[1735053925028,1.508,196.88,196.83,2.5423]
[1735053925029,4.0498,196.88,196.83,2.5423]
[1735053925429,1.6294,196.99,196.81,19.87833502]
[1735053925732,1.6294,196.99,196.85,19.87833502]
[1735053925733,1.5905,196.99,196.85,19.87833502]
[1735053925928,1.5905,196.99,196.86,2.5817]
[1735053926128,135.0,197.0,196.89,19.87833502]
[1735053926530,135.0,197.0,196.92,2.5412]
[1735053926731,135.0,197.0,196.93,1.5408]
[1735053927526,135.0,197.0,196.94,2.5409]
[1735053927927,135.0,197.0,196.93,1.5408]
[1735053928324,2.5404,196.99,196.91,2.5413]
[1735053928632,2.5404,196.99,196.88,19.87833502]
[1735053928932,2.5404,196.99,196.93,2.5411]
[1735053929529,135.0,197.0,196.91,2.5413]
[1735053929730,135.0,197.0,196.88,19.87833502]
[1735053930528,135.0,197.0,196.96,2.5407]
[1735053931129,135.0,197.0,196.87,1.5408]
[1735053931336,135.0,197.0,196.87,21.41913502]
[1735053931735,135.0,197.0,196.95,2.5408]
[1735053931936,135.0,197.0,196.91,19.87833502]
[1735053932136,135.0,197.0,196.96,2.5407]
[1735053932835,135.0,197.0,196.91,19.87833502]
[1735053933836,135.0,197.0,196.87,21.41913502]
[1735053934137,135.0,197.0,196.87,1.5408]
[1735053934337,3.0991,196.99,196.87,1.5408]
[1735053934530,2.5412,196.93,196.87,1.5408]
[1735053935026,1.6044,196.98,196.87,4.0826]
[1735053935230,1.6044,196.98,196.87,1.5408]
[1735053935634,1.6044,196.98,196.89,2.5416]
[1735053936334,135.0,197.0,196.87,1.5408]
[1735053936528,135.0,197.0,196.87,21.41913502]
[1735053936529,1.6044,196.99,196.87,21.41913502]
[1735053937130,135.0,197.0,196.87,21.41913502]
[1735053937737,137.5402,197.0,196.94,2.5409]
[1735053938340,135.0,197.0,196.95,2.5408]
[1735053938639,135.0,197.0,196.87,22.44683502]
[1735053939039,135.0,197.0,196.86,19.87833502]
[1735053939539,2.5404,196.99,196.9,2.5415]
[1735053939734,135.0,197.0,196.86,19.87833502]
[1735053940136,2.5407,196.96,196.9,2.5414]
[1735053940336,2.5407,196.96,196.86,19.87833502]
[1735053940838,2.5407,196.96,196.9,2.5414]
[1735053941540,135.0,197.0,196.92,2.5412]
[1735053942339,135.0,197.0,196.88,2.5417]
[1735053942538,21.39323502,196.99,196.88,2.5417]
[1735053942941,1.5149,196.99,196.81,4.2455]
[1735053943242,1.5149,196.99,196.91,2.5413]
[1735053943633,2.5407,196.96,196.91,2.5413]
[1735053943941,135.0,197.0,196.86,19.87833502]
[1735053944342,135.0,197.0,196.81,4.2455]
[1735053944343,135.0,197.0,196.9,19.87833502]
[1735053944541,135.0,197.0,196.91,1.5011]
[1735053945338,135.0,197.0,196.92,1.5968]
[1735053945541,135.0,197.0,196.99,2.5403]
[1735053957751,135.0,197.0,196.97,2.5406]
[1735053958149,135.0,197.0,196.95,12.3803382]
[1735053958455,135.0,197.0,196.99,2.5404]
[1735053959555,135.0,197.0,196.95,12.3803382]
[1735053959756,135.0,197.0,196.98,2.5405]
[1735053961350,135.0,197.0,196.92,12.3803382]
[1735053961879,1.5182,196.99,196.92,12.3803382]
[1735053962288,1.6371,196.98,196.93,2.5411]
[1735053962470,135.0,197.0,196.92,12.3803382]
[1735053962675,135.0,197.0,196.95,12.3803382]
[1735053963876,135.0,197.0,196.98,2.5406]